bitfinex/quotes_ETHUSD_20220101
["timestamp","ask_amount","ask_price","bid_price","bid_amount"]
[1641061280259,0.00568423,3750.3,3749.8,2.0000476]
[1641061280463,0.00568423,3750.3,3749.8,4.40205529]
[1641061280662,0.0022,3750.4,3749.8,4.40205529]
[1641061280663,0.00511581,3750.2,3749.8,5.06873529]
[1641061280861,0.00511581,3750.2,3749.8,5.03929945]
[1641061281061,0.00454738,3750.1,3749.8,5.03929945]
[1641061281462,0.00397896,3750.0,3749.8,5.03859911]
[1641061281661,0.00397896,3750.0,3749.9,6.90672741]
[1641061281863,0.0022,3750.4,3749.9,6.90672741]
[1641061282060,0.0022,3750.4,3750.1,1.9999161]
[1641061282261,0.0022,3750.4,3750.1,4.37283189]
[1641061282262,0.00568423,3750.3,3750.1,4.37283189]
[1641061282664,0.00511581,3750.2,3750.1,5.1499161]
[1641061283324,0.00511581,3750.2,3750.1,7.51796286]
[1641061283524,0.00511581,3750.2,3750.1,5.1499161]
[1641061283925,0.00511581,3750.2,3750.1,7.52291827]
[1641061284124,0.00511581,3750.2,3750.1,7.52971433]
[1641061284325,3.03631773,3750.2,3750.1,5.1499161]
[1641061284526,3.03631773,3750.2,3750.1,7.49680717]
[1641061284725,3.03631773,3750.2,3750.1,5.1499161]
[1641061284926,3.03631773,3750.2,3750.1,7.52402022]
[1641061285127,3.03631773,3750.2,3750.1,4.34942818]
[1641061285326,3.03631773,3750.2,3750.1,4.33870017]
[1641061285926,3.03631773,3750.2,3750.1,4.72170017]
[1641061287453,3.03631773,3750.2,3750.1,4.74914351]
[1641061288261,3.03631773,3750.2,3750.1,4.69914351]
[1641061291522,0.00511581,3750.2,3750.1,4.69914351]
[1641061292723,0.00511581,3750.2,3750.1,3.41586741]
[1641061293327,0.00511581,3750.2,3750.1,19.10586741]
[1641061296370,0.00511581,3750.2,3750.1,19.77243741]
[1641061297175,0.01338559,3750.5,3750.1,19.77243741]
[1641061297574,0.00113684,3750.4,3750.1,1.7162146]
[1641061297819,0.00113684,3750.4,3750.1,1.04964]
[1641061298028,0.00113684,3750.4,3750.1,0.383]
[1641061299630,0.00113684,3750.4,3750.1,1.04961]
[1641061300832,0.00113684,3750.4,3750.1,2.3827858]
[1641061301031,0.00113684,3750.4,3750.1,1.04961]
[1641061301865,0.00113684,3750.4,3750.1,0.383]
[1641061303469,0.00113684,3750.4,3750.1,16.073]
[1641061304474,0.00113684,3750.4,3750.1,16.73962]
[1641061306528,0.00113684,3750.4,3750.1,1.04962]
[1641061307123,0.00113684,3750.4,3750.1,3.44236388]
[1641061307324,0.00113684,3750.4,3750.1,1.04962]
[1641061307526,0.00113684,3750.4,3750.1,3.44584259]
[1641061307927,0.00113684,3750.4,3750.1,3.40141222]
[1641061308126,0.00113684,3750.4,3750.1,3.42556311]
[1641061308326,0.00113684,3750.4,3750.1,1.04962]
[1641061308529,0.00113684,3750.4,3750.2,2.34856022]
[1641061308733,0.00113684,3750.4,3750.1,0.66662]
[1641061309368,0.00113684,3750.4,3750.1,3.00531278]
[1641061309567,3.03220847,3750.4,3750.1,3.23662721]
[1641061309767,3.03220847,3750.4,3750.1,0.89395037]
[1641061311172,3.03220847,3750.4,3750.1,3.22779528]
[1641061311374,3.03220847,3750.4,3750.2,2.34096977]
[1641061311573,3.03220847,3750.4,3750.2,18.03096977]
[1641061311875,3.03220847,3750.4,3750.3,18.69227459]
[1641061312072,3.03220847,3750.4,3750.3,3.00227459]
[1641061312473,0.00113684,3750.4,3750.3,3.22960496]
[1641061314117,0.00113684,3750.4,3750.3,3.00227459]
[1641061314317,0.00113684,3750.4,3750.3,3.03110193]
[1641061314918,0.00113684,3750.4,3750.3,2.36453193]
[1641061315522,0.00113684,3750.4,3750.3,2.3903974]
[1641061315925,0.00113684,3750.4,3750.3,2.40687664]
[1641061316121,0.00113684,3750.4,3750.3,2.38798733]
[1641061316572,0.00113684,3750.4,3750.2,1.33309]
[1641061316771,0.00113684,3750.4,3750.3,2.44461652]
[1641061317576,0.00113684,3750.4,3750.1,0.89397037]
[1641061318578,0.00113684,3750.4,3750.1,0.66664]
[1641061319178,0.00113684,3750.4,3750.1,1.33324]
[1641061319681,0.00113684,3750.4,3750.1,2.6664377]
[1641061320523,0.00113684,3750.4,3750.2,0.66662]
[1641061321126,0.00113684,3750.4,3750.2,1.9997956]
[1641061325476,0.00113684,3750.4,3750.2,0.66662]
[1641061327082,0.00113684,3750.4,3750.1,0.66666]
[1641061327486,3.03106619,3750.7,3750.1,0.66666]
[1641061327823,0.00227369,3750.6,3750.1,0.66666]
[1641061328229,0.00170527,3750.5,3750.1,0.66666]
[1641061328628,0.00113684,3750.4,3750.1,0.66666]
[1641061330031,0.00113684,3750.4,3750.2,0.66663]
[1641061330431,2.93220303,3750.7,3750.2,0.66663]
[1641061330629,2.93220303,3750.7,3750.0,0.05572323]
[1641061330830,0.00113685,3750.6,3750.0,0.05572323]
[1641061331030,0.00113685,3750.6,3750.1,0.00170527]
[1641061331681,0.00113685,3750.6,3750.1,0.66835527]
[1641061332079,0.00113685,3750.6,3750.2,0.00113684]
[1641061334785,0.50420367,3750.8,3750.2,0.00113684]
[1641061334987,0.50420367,3750.8,3750.2,0.00227369]
[1641061336832,0.69613296,3750.9,3750.2,2.36862847]
[1641061337031,0.69613296,3750.9,3750.2,3.02685195]
[1641061337231,0.00113685,3750.8,3750.3,0.00170527]
[1641061337838,0.00113685,3750.8,3750.4,0.383]
[1641061338036,0.00113685,3750.8,3750.5,5.5879882]
[1641061338232,0.00113685,3750.8,3750.6,0.383]
[1641061338433,0.00113685,3750.8,3750.7,8.08058077]
[1641061338633,0.00113685,3750.8,3750.7,24.15358077]
[1641061338834,0.00113685,3750.8,3750.7,19.90671698]
[1641061339999,0.00113685,3750.8,3750.7,20.13404735]
[1641061349877,0.00113685,3750.8,3750.7,0.61033037]
[1641061350536,0.00113685,3750.8,3750.7,0.383]
[1641061352234,1.15240769,3750.8,3750.3,0.66831527]
[1641061352437,1.15240769,3750.8,3750.3,0.00170527]
[1641061352637,1.15240769,3750.8,3750.4,0.00113685]
[1641061352837,1.15240769,3750.8,3750.3,0.00170527]
[1641061356983,3.03078818,3750.7,3750.3,0.00170527]
[1641061357820,1.15240769,3750.8,3750.3,0.00170527]
[1641061358428,3.03085286,3750.7,3750.3,0.00170527]
[1641061359026,3.03085286,3750.7,3749.9,0.00397896]
[1641061359625,5.77465408,3750.7,3749.8,0.00454739]
[1641061359828,3.03085286,3750.7,3749.8,0.00454739]
[1641061360028,5.80549045,3750.7,3749.8,0.00454739]
[1641061360228,5.80549045,3750.7,3749.7,0.00511581]
[1641061360529,0.66677,3750.6,3749.7,0.00511581]
[1641061360728,0.66676,3750.4,3749.7,0.00511581]
[1641061362189,3.03085286,3750.3,3749.7,0.00511581]
[1641061363297,0.01220645,3750.0,3749.7,0.00511581]
[1641061363694,0.01220645,3750.0,3749.6,4.618e-05]
[1641061363695,6.25,3749.9,3749.6,4.618e-05]
[1641061363896,0.01220645,3750.0,3749.1,4.618e-05]
[1641061364097,0.00113685,3749.9,3749.1,4.618e-05]
[1641061364298,1.33406,3749.6,3749.2,0.00284212]
[1641061364902,1.33406,3749.6,3747.5,3.6336]
[1641061364903,2.66813,3749.6,3748.4,0.00738951]
[1641061365101,2.66813,3749.6,3748.2,0.00852635]
[1641061365326,1.22784051,3749.1,3748.1,1.02862879]
[1641061365527,0.66699,3749.3,3748.1,1.02862879]
[1641061365727,0.66699,3749.3,3748.2,0.00852635]
[1641061365930,0.6669675,3749.5,3748.2,0.00852635]
[1641061366234,0.6669675,3749.5,3748.2,15.69852635]
[1641061366430,0.6669675,3749.5,3748.2,0.00852635]
[1641061366630,0.6669675,3749.5,3748.3,0.00795793]
[1641061366831,0.6669675,3749.5,3748.2,15.69852635]
[1641061367030,0.6669675,3749.5,3748.3,0.00795793]
[1641061367031,1.22199912,3749.2,3748.3,0.00795793]
[1641061368135,0.6669278,3749.7,3748.3,15.69795793]
[1641061368536,0.6669278,3749.7,3748.4,0.00738951]
[1641061368936,0.6669278,3749.7,3748.3,0.00795793]
[1641061369167,0.6669278,3749.7,3748.4,0.00738951]
[1641061369466,1.14364316,3749.1,3748.3,0.00795793]
[1641061370174,1.3338478,3749.7,3748.4,15.69]
[1641061370373,0.66692,3749.7,3748.4,15.69]
[1641061370573,0.66692,3749.7,3748.5,0.00682108]
[1641061371174,0.66692,3749.7,3748.3,0.00795793]
[1641061371574,1.31735603,3749.2,3748.3,0.00795793]
[1641061371976,1.31735603,3749.2,3748.2,17.88169803]
[1641061372177,0.00454739,3749.1,3748.2,17.88169803]
[1641061372578,0.00397897,3749.0,3748.4,0.66689]
[1641061372827,0.00397897,3749.0,3748.5,15.69]
[1641061373031,0.00341054,3748.9,3748.5,15.69]
[1641061373429,0.00284212,3748.8,3748.5,15.69]
[1641061373830,0.00227369,3748.7,3748.5,15.69]
[1641061374232,0.00170527,3748.6,3748.5,15.69]
[1641061374637,0.00170527,3748.6,3748.5,16.373]
[1641061374835,0.00170527,3748.6,3748.5,16.673]
[1641061375134,0.00170527,3748.6,3748.5,21.08339301]
[1641061375933,0.00090527,3748.6,3748.5,21.08339301]
[1641061379787,5.27e-06,3748.6,3748.5,21.38339301]
[1641061379990,12.27362269,3751.2,3749.4,0.66669]
[1641061380187,15.98552269,3751.2,3749.6,0.666689]
[1641061380429,0.00852635,3750.1,3749.6,16.356689]
[1641061380828,0.00795793,3750.0,3749.6,16.356689]
[1641061381232,0.69624868,3750.8,3749.6,16.356689]
[1641061381233,0.00738951,3749.9,3749.6,16.356689]
[1641061381635,0.69624868,3750.8,3749.8,0.66669]
[1641061381839,1.35397116,3750.5,3749.8,0.66669]
[1641061383840,1.35397116,3750.5,3749.8,0.89402492]
[1641061385585,1.35397116,3750.5,3749.8,16.58402492]
[1641061385783,1.35397116,3750.5,3750.0,15.69]
[1641061385986,1.35397116,3750.5,3750.1,0.66665]
[1641061387817,1.35397116,3750.5,3750.1,16.58398107]
[1641061388420,1.35397116,3750.5,3750.2,0.22733107]
[1641061391133,1.35397116,3750.5,3749.7,1.33331]
[1641061391973,1.35397116,3750.5,3749.8,15.69]
[1641061392175,1.35397116,3750.5,3749.9,0.66667]
[1641061392573,1.35397116,3750.5,3750.0,0.6666428]
[1641061393173,1.35397116,3750.5,3750.1,0.66665]
[1641061394382,1.35397116,3750.5,3749.8,1.333371]
[1641061394584,1.35397116,3750.5,3749.8,0.6667]
[1641061396241,1.35397116,3750.5,3749.8,1.33338]
[1641061396743,1.35397116,3750.5,3749.9,0.66667]
[1641061397044,1.35397116,3750.5,3750.1,0.66666]
[1641061397942,1.35397116,3750.5,3749.7,1.33331]
[1641061398143,1.35397116,3750.5,3749.8,15.69]
[1641061398344,1.35397116,3750.5,3749.9,0.66666]
[1641061398842,0.01193689,3750.7,3749.9,16.35666]
[1641061399080,0.01193689,3750.7,3749.7,1.56064107]
[1641061399081,0.01193689,3750.7,3750.1,15.69]
[1641061399281,1.78684138,3751.6,3749.5,0.5]
[1641061399282,0.01136847,3750.6,3750.3,16.35656]
[1641061399481,0.01136847,3750.6,3750.4,0.383]
[1641061399681,0.77417437,3751.4,3750.4,0.61033107]
[1641061399682,0.01080005,3750.5,3750.4,0.61033107]
[1641061399884,0.01080005,3750.5,3750.4,16.30033107]
[1641061400483,0.01080005,3750.5,3750.4,0.61033107]
[1641061400684,0.01080005,3750.5,3750.4,1.27685107]
[1641061401588,0.01080005,3750.5,3750.4,0.383]
[1641061403329,0.01080005,3750.5,3750.4,1.04961]
[1641061407882,0.01080005,3750.5,3750.4,1.27694107]
[1641061409084,0.01080005,3750.5,3750.4,0.61033107]
[1641061410086,0.01080005,3750.5,3750.4,0.383]
[1641061417586,0.00863805,3750.5,3750.3,0.66652]
[1641061418041,0.00806962,3750.4,3750.2,0.66669]
[1641061418439,0.0075012,3750.3,3750.2,0.66669]
[1641061420038,0.0053332,3750.3,3750.2,0.66669]
[1641061424589,0.0053332,3750.3,3750.2,16.35669]
[1641061425633,0.0053332,3750.3,3750.2,16.58402107]
[1641061427134,0.0053332,3750.3,3750.2,16.96702107]
[1641061427737,0.0553408,3750.8,3750.3,7.44307922]
[1641061427940,0.0553408,3750.8,3750.6,16.3564333]
[1641061428138,0.0553408,3750.8,3750.7,16.073]
[1641061428538,0.05818292,3750.8,3750.7,16.073]
[1641061428838,0.05818292,3750.8,3750.7,16.30033107]
[1641061429286,0.00284212,3750.8,3750.7,16.30033107]
[1641061441234,0.00284212,3750.8,3750.7,0.61033107]
[1641061442133,0.00284212,3750.8,3750.7,0.383]
[1641061443339,1.48930346,3751.8,3750.7,1.04952]
[1641061443739,1.12094207,3751.2,3750.7,1.04952]
[1641061444180,1.07037365,3751.2,3750.7,1.04952]
[1641061444380,1.07037365,3751.2,3750.8,0.00170527]
[1641061453183,3.03062963,3751.1,3750.8,0.00170527]
[1641061455185,3.03062963,3751.1,3750.7,0.0022737]
[1641061477938,3.03062963,3751.1,3750.7,0.6688537]
[1641061479440,3.03062963,3751.1,3750.7,1.3354337]
[1641061482596,3.03062963,3751.1,3750.7,0.6688537]
[1641061484397,1.07037365,3751.2,3750.7,0.6688537]
[1641061484897,3.03063575,3751.1,3750.7,0.6688537]
[1641061485097,3.03063575,3751.1,3750.7,0.0022737]
[1641061495540,3.03063575,3751.1,3750.7,0.6688637]
[1641061497310,3.03063575,3751.1,3750.7,1.3354337]
[1641061499210,3.03063575,3751.1,3750.7,2.0020037]
[1641061499412,3.03063575,3751.1,3750.7,2.6685675]
[1641061499811,3.03063575,3751.1,3750.8,0.66656]
[1641061500012,3.03063575,3751.1,3750.9,0.66656]
[1641061500212,3.03063575,3751.1,3750.9,0.66769685]
[1641061501045,3.03063575,3751.1,3750.9,1.33423685]
[1641061501254,3.03063575,3751.1,3751.0,15.69]
[1641061501448,0.76152269,3751.8,3751.0,16.073]
[1641061501650,5.30747631,3752.1,3751.0,16.073]
[1641061501850,0.00341054,3751.7,3751.4,0.66637]
[1641061502250,0.00284212,3751.6,3751.4,0.66637]
[1641061502650,0.00227369,3751.5,3751.4,0.66637]
[1641061502851,0.00227369,3751.5,3751.3,3.99824]
[1641061503252,0.00170527,3751.4,3751.3,3.99824]
[1641061503652,0.00170527,3751.4,3751.3,19.91553768]
[1641061504689,0.00170527,3751.4,3751.3,20.58191928]
[1641061527800,0.00170527,3751.4,3751.3,4.89191928]
[1641061528004,0.00170527,3751.4,3751.3,20.49191928]
[1641061533558,0.69588276,3752.0,3751.3,20.49191928]
[1641061533758,0.69588276,3752.0,3751.7,0.66642]
[1641061533959,0.00454739,3751.9,3751.7,0.66642]
[1641061534396,0.00397896,3751.8,3751.6,1.332814]
[1641061534797,0.00341054,3751.7,3751.6,1.332814]
[1641061535007,0.00341054,3751.7,3751.6,1.999234]
[1641061535500,0.00341054,3751.7,3751.6,1.332814]
[1641061542604,0.00341054,3751.7,3751.4,0.89376238]
[1641061542808,0.00341054,3751.7,3751.4,0.22729768]
[1641061543007,0.00284212,3751.6,3751.4,0.22729768]
[1641061543407,5.20227369,3751.5,3751.4,0.22729768]
[1641061543809,5.86887369,3751.5,3751.4,0.22729768]
[1641061544410,6.96165611,3751.5,3751.4,0.22729768]
[1641061544610,9.75174357,3751.5,3751.4,0.22729768]
[1641061544813,9.75174357,3751.5,3751.3,0.05488968]
[1641061544814,12.78219721,3751.5,3751.3,0.05488968]
[1641061545015,7.65095667,3751.4,3751.3,0.05488968]
[1641061545211,2.75266194,3751.4,3750.3,0.66664]
[1641061545461,0.66664,3751.3,3750.7,0.05489008]
[1641061545656,0.66777684,3751.3,3750.7,0.05489008]
[1641061545956,0.66777684,3751.3,3750.8,0.00170527]
[1641061546762,3.03045364,3751.2,3750.8,0.00170527]
[1641061547158,5.72797994,3751.2,3750.8,0.00170527]
[1641061547357,3.03045364,3751.2,3750.8,0.00170527]
[1641061547559,2.69689015,3751.1,3750.8,0.00170527]
[1641061547761,3.03045364,3751.1,3750.6,0.00284212]
[1641061549930,3.03159048,3751.3,3750.6,0.00284212]
[1641061550328,3.69822048,3751.3,3750.6,0.00284212]
[1641061551634,3.03045364,3751.2,3750.6,0.00284212]
[1641061553745,0.6961039,3751.1,3750.6,0.00284212]
[1641061554748,3.03045364,3751.0,3750.6,0.00284212]
[1641061557401,3.03045364,3751.0,3750.5,0.00341054]
[1641061557803,1.06894414,3750.9,3750.5,0.00341054]
[1641061565492,1.06894414,3750.9,3750.3,0.00454739]
[1641061570255,2.70180673,3750.8,3750.1,0.00568424]
[1641061570455,1.73566574,3750.9,3750.1,0.00568424]
[1641061570654,1.73566574,3750.9,3749.8,3.916]
[1641061570655,1.73566574,3750.9,3750.0,0.00625266]
[1641061570955,1.73566574,3750.9,3749.9,0.00682108]
[1641061571157,1.06894414,3750.9,3749.9,0.00682108]
[1641061571792,1.73564414,3750.9,3749.9,0.00682108]
[1641061572602,1.3045895,3750.2,3749.9,0.00682108]
[1641061573599,1.3045895,3750.2,3749.9,0.67351108]
[1641061574000,1.3045895,3750.2,3750.0,0.00625266]
[1641061577748,1.3045895,3750.2,3749.8,0.00738951]
[1641061578552,1.3045895,3750.2,3749.8,0.67410951]
[1641061578956,1.3045895,3750.2,3749.9,0.00682108]
[1641061582206,1.3045895,3750.2,3749.9,0.67351108]
[1641061582606,1.3045895,3750.2,3750.0,0.00625266]
[1641061584356,8.4363793,3751.1,3750.0,0.00625266]
[1641061585155,3.03094836,3751.0,3750.0,0.00625266]
[1641061585754,1.19559198,3750.5,3750.0,0.00625266]
[1641061586355,1.19559198,3750.5,3750.1,0.66667]
[1641061586802,1.19559198,3750.5,3750.2,0.00511581]
[1641061587204,3.03113679,3750.4,3750.2,0.00511581]
[1641061587404,3.03113679,3750.4,3750.0,0.00625266]
[1641061588815,2.67352022,3750.3,3750.0,0.00625266]
[1641061589212,1.0,3750.2,3749.8,0.00738951]
[1641061589613,1.66698,3750.2,3749.8,0.00738951]
[1641061590011,1.3339564,3750.1,3749.8,0.00738951]
[1641061590448,2.3339564,3750.1,3749.8,0.00738951]
[1641061590654,0.66698,3749.7,3749.2,0.01080005]
[1641061590852,1.70265479,3749.6,3749.2,0.01080005]
[1641061591254,2.36963479,3749.6,3749.2,0.01080005]
[1641061591553,2.36963479,3749.6,3748.4,0.01534744]
[1641061591755,0.66698,3749.4,3748.4,0.01534744]
[1641061591953,3.03113679,3749.5,3748.4,0.01534744]
[1641061592352,3.03113679,3749.5,3748.3,15.61591586]
[1641061592752,3.03113679,3749.5,3748.7,0.66687]
[1641061593156,1.03567479,3749.6,3748.8,0.01307374]
[1641061595199,1.03567479,3749.6,3748.6,0.89419768]
[1641061595200,1.03567479,3749.6,3748.7,0.01364217]
[1641061595400,3.03176049,3749.5,3748.7,0.01364217]
[1641061595598,5.70528071,3749.5,3748.7,0.01364217]
[1641061595800,0.66701,3749.1,3748.7,0.01364217]
[1641061596001,0.66701,3749.1,3748.4,2.292766]
[1641061596002,0.01215412,3748.8,3748.4,2.292766]
[1641061596201,0.6671998,3748.7,3748.4,2.292766]
[1641061596401,0.6671998,3748.7,3748.2,6.15]
[1641061596402,1.2514917,3748.6,3748.5,0.00113684]
[1641061596798,0.66723,3748.5,3748.3,0.00227369]
[1641061597000,0.6672,3748.4,3748.3,0.00227369]
[1641061597499,2.292766,3748.2,3747.7,3.97734636]
[1641061597708,2.67352022,3748.1,3747.7,3.97734636]
[1641061597960,0.6674,3747.9,3747.8,0.00284212]
[1641061598162,2.45568822,3747.9,3747.8,0.00284212]
[1641061598559,2.07051422,3747.9,3747.8,0.00284212]
[1641061598760,4.43704871,3747.9,3747.8,0.00284212]
[1641061599161,37.49407566,3747.9,3747.8,0.00284212]
[1641061599766,1.04319059,3747.1,3746.9,0.00795793]
[1641061600662,1.04319059,3747.1,3746.4,0.01080004]
[1641061601911,1.04101159,3747.1,3746.4,0.01080004]
[1641061603818,1.04101159,3747.1,3746.5,3.63547372]
[1641061604218,1.04101159,3747.1,3746.6,0.0096632]
[1641061604920,1.03669459,3747.1,3746.6,0.0096632]
[1641061605120,0.66726,3747.8,3746.6,3.64513692]
[1641061605549,0.66726,3747.8,3746.7,0.00909477]
[1641061605949,3.03294684,3747.7,3746.7,0.00909477]
[1641061606150,3.03079184,3747.7,3746.7,0.00909477]
[1641061606354,1.25972897,3747.5,3746.7,0.00909477]
[1641061606854,1.25972897,3747.5,3746.7,3.87203887]
[1641061607253,1.25972897,3747.5,3746.8,0.00852635]
[1641061610300,1.48976269,3748.2,3747.0,15.6]
[1641061610301,0.76152269,3748.2,3747.0,15.6]
[1641061610501,3.2767,3748.5,3747.1,18.63852044]
[1641061610698,3.2767,3748.5,3747.2,0.383]
[1641061610899,3.2767,3748.5,3747.3,2.65552044]
[1641061611099,3.2767,3748.5,3747.3,2.66120467]
[1641061611301,1.36834725,3748.0,3747.4,0.00511581]
[1641061612099,1.36834725,3748.0,3747.2,0.383]
[1641061612100,1.36834725,3748.0,3747.3,0.00568423]
[1641061612500,1.36834725,3748.0,3747.3,2.30925291]
[1641061612705,1.36834725,3748.0,3747.4,2.2712339]
[1641061612952,1.36834725,3748.0,3747.4,2.27634971]
[1641061613151,1.36834725,3748.0,3747.2,0.383]
[1641061613152,1.36834725,3748.0,3747.5,0.00454739]
[1641061613552,1.36834725,3748.0,3747.3,2.34495862]
[1641061613753,1.36834725,3748.0,3747.4,0.00511581]
[1641061614753,1.36834725,3748.0,3747.3,2.29060616]
[1641061614953,1.36834725,3748.0,3747.4,0.00511581]
[1641061615355,1.36834725,3748.0,3747.3,2.31317388]
[1641061615554,1.36834725,3748.0,3747.4,0.00511581]
[1641061615953,1.36834725,3748.0,3747.2,0.383]
[1641061615954,1.36834725,3748.0,3747.3,2.27604496]
[1641061616156,1.36834725,3748.0,3747.3,0.00568423]
[1641061616355,1.36834725,3748.0,3747.4,0.00511581]
[1641061616599,1.36834725,3748.0,3747.3,0.00568423]
[1641061618010,1.36834725,3748.0,3746.5,0.01023162]
[1641061618206,0.6673338,3747.6,3746.5,0.01023162]
[1641061619307,1.06221347,3746.7,3746.5,0.01023162]
[1641061620208,1.06221347,3746.7,3746.1,2.38428537]
[1641061620209,1.06221347,3746.7,3746.3,0.01136847]
[1641061620456,0.66734,3747.5,3746.3,2.2889975]
[1641061620661,0.66734,3747.5,3746.3,0.01136847]
[1641061620857,0.66734,3747.5,3746.4,0.01080004]
[1641061621055,0.66734,3747.5,3746.3,0.01306072]
[1641061621256,0.69684111,3747.4,3746.4,0.01080004]
[1641061621757,1.14921628,3746.9,3746.4,0.01080004]
[1641061622155,0.69684111,3747.4,3746.4,0.01080004]
[1641061623266,1.07818103,3746.9,3746.4,0.01080004]
[1641061624198,0.69684111,3747.4,3746.4,0.01080004]
[1641061624402,0.69684111,3747.4,3746.2,27.84441715]
[1641061624603,0.00511581,3747.3,3746.2,27.84441715]
[1641061624803,0.00511581,3747.3,3746.2,27.88192486]
[1641061625002,0.00454738,3747.2,3746.2,27.88192486]
[1641061625403,0.00397896,3747.1,3746.3,0.66726]
[1641061625603,0.00397896,3747.1,3746.4,17.90027224]
[1641061625806,0.00341054,3747.0,3746.6,1.110367]
[1641061626305,0.00284211,3746.9,3746.6,1.110367]
[1641061626706,0.00227369,3746.8,3746.6,1.110367]
[1641061627105,0.00170527,3746.7,3746.6,1.110367]
[1641061627857,0.00170527,3746.7,3746.6,4.010367]
[1641061629364,0.00170527,3746.7,3746.6,22.28532481]
[1641061632614,0.00170527,3746.7,3746.6,6.68532481]
[1641061632817,0.00170527,3746.7,3746.6,6.91281264]
[1641061633021,0.00170527,3746.7,3746.6,6.68532481]
[1641061634423,0.00170527,3746.7,3746.6,4.310367]
[1641061635462,0.00170527,3746.7,3746.6,6.69358075]
[1641061635661,0.00170527,3746.7,3746.6,6.39358075]
[1641061635864,0.00170527,3746.7,3746.6,6.28501349]
[1641061636063,0.00170527,3746.7,3746.6,2.9]
[1641061636664,0.00170527,3746.7,3746.6,5.5]
[1641061636964,0.00170527,3746.7,3746.6,5.25061659]
[1641061637165,0.00170527,3746.7,3746.6,5.55061659]
[1641061637969,0.00170527,3746.7,3746.6,5.25061659]
[1641061638170,0.00170527,3746.7,3746.6,2.9]
[1641061638570,0.00018836,3746.7,3746.4,0.383]
[1641061639105,0.00018836,3746.7,3746.5,0.00094849]
[1641061639910,0.00018836,3746.7,3746.5,2.26039285]
[1641061640115,0.00018836,3746.7,3746.5,2.25572675]
[1641061640312,0.00018836,3746.7,3746.5,0.00094849]
[1641061640511,0.00018836,3746.7,3746.5,2.25984156]
[1641061640712,0.00018836,3746.7,3746.5,0.00094849]
[1641061642013,0.00018836,3746.7,3746.4,0.00151691]
[1641061643055,2.7368497,3746.7,3746.4,0.00151691]
[1641061643257,2.7368497,3746.7,3746.3,0.00208534]
[1641061644155,3.70110682,3746.7,3746.3,0.00208534]
[1641061644356,6.37663656,3746.7,3746.3,0.00208534]
[1641061645156,3.03347846,3746.6,3746.3,0.00208534]
[1641061645354,2.67651197,3746.5,3746.3,0.00208534]
[1641061645756,3.03347846,3746.6,3746.3,0.00208534]
[1641061645958,1.16576086,3746.4,3746.3,0.00208534]
[1641061646801,4.19958759,3746.4,3746.3,0.00208534]
[1641061647703,1.16576086,3746.4,3746.3,0.00208534]
[1641061651552,1.86271325,3746.4,3746.3,0.00208534]
[1641061655000,0.69695239,3746.4,3746.3,0.00208534]
[1641061661602,1.46153112,3746.8,3746.3,0.00208534]
[1641061661810,1.46153112,3746.8,3746.4,0.66735]
[1641061663206,1.4069856,3746.8,3746.4,0.66735]
[1641061663608,1.4069856,3746.8,3746.3,1.33680534]
[1641061663807,0.69687793,3746.9,3746.3,1.33680534]
[1641061664007,0.69687793,3746.9,3746.4,0.00151691]
[1641061665759,1.94192913,3746.9,3746.4,0.00151691]
[1641061666161,1.94192913,3746.9,3746.4,0.66886691]
[1641061667162,0.69687793,3746.9,3746.4,0.66886691]
[1641061669206,0.69687793,3746.9,3746.4,1.76734469]
[1641061669607,0.69687793,3746.9,3746.4,2.43466469]
[1641061670707,0.69687793,3746.9,3746.4,2.67080911]
[1641061670911,0.69687793,3746.9,3746.4,1.33618691]
[1641061671813,0.69687793,3746.9,3746.4,2.00350141]
[1641061672015,0.69687793,3746.9,3746.6,0.66732]
[1641061672215,0.69687793,3746.9,3746.4,1.33615141]
[1641061672216,0.69687793,3746.9,3746.4,0.00151691]
[1641061672417,1.36431793,3746.9,3746.4,0.00151691]
[1641061672613,1.36431793,3746.9,3746.7,3.63475263]
[1641061672614,1.17596083,3746.9,3746.7,3.63475263]
[1641061673066,1.17596083,3746.9,3746.3,0.00208534]
[1641061673464,1.11664279,3746.4,3746.3,0.00208534]
[1641061673764,0.66745,3746.7,3746.3,0.00208534]
[1641061673968,1.17598083,3746.9,3746.3,0.00208534]
[1641061674163,1.17598083,3746.9,3746.4,0.6673033]
[1641061674164,0.50852083,3746.9,3746.4,0.6673033]
[1641061674364,0.0598,3747.3,3746.3,3.04060578]
[1641061674563,8.66829616,3747.6,3746.8,1.06521067]
[1641061674763,0.00303047,3747.2,3746.8,1.73245067]
[1641061675166,0.00246205,3747.1,3747.0,0.66723]
[1641061676365,0.00246205,3747.1,3747.0,1.33446]
[1641061678612,0.00246205,3747.1,3747.0,6.52958785]
[1641061679215,0.00246205,3747.1,3747.0,3.57958785]
[1641061680116,0.00246205,3747.1,3747.0,3.52958785]
[1641061681957,0.00246205,3747.1,3747.0,3.54534354]
[1641061682158,0.00246205,3747.1,3747.0,3.53098759]
[1641061682358,0.00246205,3747.1,3747.0,3.52659781]
[1641061682560,0.00246205,3747.1,3747.0,3.51047286]
[1641061682761,0.00246205,3747.1,3747.0,19.11047286]
[1641061682968,0.00246205,3747.1,3747.0,20.44478556]
[1641061683968,0.00246205,3747.1,3747.0,20.67232257]
[1641061684816,0.00246205,3747.1,3747.0,18.44630971]
[1641061688463,2.70246205,3747.1,3747.0,18.44630971]
[1641061689864,2.70246205,3747.1,3747.0,18.74630971]
[1641061690068,5.31158198,3748.2,3747.1,6.25]
[1641061690370,0.00568423,3748.1,3747.7,1.10724229]
[1641061690575,0.00568423,3748.1,3747.8,3.02715486]
[1641061690765,0.00511581,3748.0,3747.9,15.6]
[1641061690964,0.00511581,3748.0,3747.9,15.983]
[1641061691164,0.00511581,3748.0,3747.9,16.283]
[1641061691465,0.00511581,3748.0,3747.9,16.94989]
[1641061692316,0.05418751,3748.3,3747.9,16.94989]
[1641061692317,0.05418751,3748.3,3748.1,15.6]
[1641061692517,0.05418751,3748.3,3748.2,9.98756825]
[1641061692719,8.751e-05,3748.3,3748.2,10.65435825]
[1641061692920,0.76152269,3749.2,3748.8,15.6]
[1641061693124,0.76152269,3749.7,3748.9,18.26334039]
[1641061693320,0.00625266,3749.1,3748.9,18.26334039]
[1641061693519,0.00625266,3749.1,3749.0,17.9004235]
[1641061693720,0.76152269,3749.7,3749.0,15.6]
[1641061693921,0.76152269,3749.7,3749.5,0.66672]
[1641061694122,0.00909478,3749.6,3749.5,0.66672]
[1641061695222,3.0409714,3749.6,3749.5,0.66672]
[1641061695865,5.7409714,3749.6,3749.4,1.3334511]
[1641061696161,5.6909714,3749.6,3749.4,1.3334511]
[1641061696560,2.7,3749.6,3749.4,1.3334511]
[1641061697464,2.7,3749.6,3749.5,15.6]
[1641061698169,2.7,3749.6,3749.5,15.82753701]